[Event "1st Sivas Buruciye Open 2019"]
[Site "Sivas"]
[Date "2019.08.21"]
[Round "5"]
[White "Rzayev, Chingiz"]
[Black "Barsov, Alexei"]
[Result "0-1"]
[ECO "C01"]
[WhiteElo "2098"]
[BlackElo "2383"]
[Annotator "NA"]
[PlyCount "62"]
[EventDate "2019.08.19"]
[EventType "swiss"]
[EventCountry "TUR"]
[SourceTitle "playchess.com"]
[Source "ChessBase"]
[SourceQuality "1"]
[TimeControl "5400+30"]

1. e4 {[%emt 0:00:30]} e6 {[%emt 0:00:30]} 2. d4 {[%emt 0:00:30]} d5 {[%emt 0:02:30]} 3. exd5 {[%emt 0:00:00]} exd5 {[%emt 0:00:30]} 4. Bd3 {[%emt 0:00:00]} c5 {[%emt 0:00:30]} 5. dxc5 {[%emt 0:00:30]} Bxc5 {[%emt 0:00:30]} 6. Nf3 {[%emt 0:00:30]} Nf6 {[%emt 0:00:30]} 7. O-O {[%emt 0:00:30]} O-O {[%emt 0:00:00]} 8. h3 {[%emt 0:00:30]} Qd6 {[%emt 0:01:00]} 9. b4 {[%emt 0:09:30]} Bxb4 {[%emt 0:01:30]} 10. Bb2 {[%emt 0:00:30]} Nc6 {[%emt 0:10:30]} 11. c4 {[%emt 0:08:30]} dxc4 {[%emt 0:08:30]} 12. Bxc4 {[%emt 0:03:30]} Bf5 {[%emt 0:04:30]} 13. Qxd6 {[%emt 0:05:30]} Bxd6 {[%emt 0:00:30]} 14. Nc3 {[%emt 0:01:30]} Rac8 {[%emt 0:08:30]} 15. Nb5 {[%emt 0:05:30]} Bc5 {[%emt 0:00:30]} 16. Rac1 {[%emt 0:06:30]} b6 {[%emt 0:08:30]} 17. Ne5 {[%emt 0:12:30]} a6 {[%emt 0:00:30]} 18. Nxc6 {[%emt 0:01:30]} Rxc6 {[%emt 0:01:30]} 19. Nd4 {[%emt 0:00:30]} Bxd4 {[%emt 0:00:30]} 20. Bxd4 {[%emt 0:00:00]} Rfc8 {[%emt 0:00:30]} 21. g4 {[%emt 0:07:00]} Rxc4 {[%emt 0:12:30]} 22. Rxc4 {[%emt 0:01:30]} Rxc4 {[%emt 0:00:30]} 23. Bxf6 {[%emt 0:00:30]} Bxg4 {[%emt 0:00:00]} 24. Bd8 {[%emt 0:03:30]} Bxh3 {[%emt 0:00:00]} 25. Re1 {[%emt 0:00:00]} Be6 {[%emt 0:00:30]} 26. Bxb6 {[%emt 0:00:00]} Ra4 {[%emt 0:00:30]} 27. Kg2 {[%emt 0:03:30]} Rxa2 {[%emt 0:00:30]} 28. Kg3 {[%emt 0:00:30]} Ra3+ {[%emt 0:03:30]} 29. Kf4 {[%emt 0:00:30]} h5 {[%emt 0:04:30]} 30. Kg5 {[%emt 0:08:30]} f6+ {[%emt 0:02:30]} 31. Kxh5 {[%emt 0:00:30]} Rh3+ {[%emt 0:00:30]} 0-1

[Event "1st Sivas Buruciye Open 2019"]
[Site "Sivas"]
[Date "2019.08.21"]
[Round "5"]
[White "Caputcuoglu, Zeki Berke"]
[Black "Odeev, Handszar"]
[Result "1/2-1/2"]
[ECO "A46"]
[WhiteElo "2004"]
[BlackElo "2360"]
[Annotator "NA"]
[PlyCount "55"]
[EventDate "2019.08.19"]
[EventType "swiss"]
[EventCountry "TUR"]
[SourceTitle "playchess.com"]
[Source "ChessBase"]
[SourceQuality "1"]
[TimeControl "5400+30"]

1. Nf3 {[%emt 0:01:30]} d6 {[%emt 0:06:30]} 2. d4 {[%emt 0:00:30]} Nf6 {[%emt 0:01:30]} 3. Nc3 {[%emt 0:00:30]} Bf5 {[%emt 0:01:30]} 4. Nh4 {[%emt 0:00:30]} Bd7 {[%emt 0:06:30]} 5. e4 {[%emt 0:02:30]} e5 {[%emt 0:00:30]} 6. Nf3 {[%emt 0:02:30]} exd4 {[%emt 0:05:30]} 7. Nxd4 {[%emt 0:01:30]} g6 {[%emt 0:00:00]} 8. f3 {[%emt 0:02:30]} Bg7 {[%emt 0:03:00]} 9. Be3 {[%emt 0:00:30]} O-O {[%emt 0:05:30]} 10. Qd2 {[%emt 0:02:30]} c6 {[%emt 0:33:30]} 11. Be2 {[%emt 0:08:30]} d5 {[%emt 0:11:30]} 12. exd5 {[%emt 0:05:30]} cxd5 {[%emt 0:00:30]} 13. O-O {[%emt 0:03:30]} Nc6 {[%emt 0:00:30]} 14. Nxc6 {[%emt 0:03:30]} bxc6 {[%emt 0:00:30]} 15. Na4 {[%emt 0:11:30]} Re8 {[%emt 0:02:41]} 16. Bd4 {[%emt 0:18:30]} Nh5 {[%emt 0:00:22]} 17. Bxg7 {[%emt 0:00:30]} Nxg7 {[%emt 0:00:08]} 18. Rfe1 {[%emt 0:02:30]} Ne6 {[%emt 0:01:04]} 19. b3 {[%emt 0:02:30]} Qf6 {[%emt 0:00:39]} 20. Bf1 {[%emt 0:00:30]} h5 {[%emt 0:00:41]} 21. c4 {[%emt 0:06:30]} d4 {[%emt 0:01:21]} 22. Nb2 {[%emt 0:01:30]} h4 {[%emt 0:01:30]} 23. h3 {[%emt 0:00:30]} Ng5 {[%emt 0:04:09]} 24. Kh1 {[%emt 0:03:49]} Re3 {[%emt 0:03:18]} 25. Rxe3 {[%emt 0:05:19]} dxe3 {[%emt 0:00:02]} 26. Qxe3 {[%emt 0:00:00]} Qxb2 {[%emt 0:00:41]} 27. Rd1 {[%emt 0:00:00]} Nxh3 {[%emt 0:04:36]} 28. Rxd7 {[%emt 0:02:32]} 1/2-1/2

[Event "1st Sivas Buruciye Open 2019"]
[Site "Sivas"]
[Date "2019.08.21"]
[Round "5"]
[White "Amanmuradow, Atajan"]
[Black "Sabahi, Ali Can"]
[Result "1-0"]
[ECO "D05"]
[WhiteElo "1794"]
[BlackElo "1825"]
[Annotator "NA"]
[PlyCount "75"]
[EventDate "2019.08.19"]
[EventType "swiss"]
[EventCountry "TUR"]
[SourceTitle "playchess.com"]
[Source "ChessBase"]
[SourceQuality "1"]
[TimeControl "5400+30"]

1. Nf3 {[%emt 0:00:30]} e6 {[%emt 0:04:30]} 2. d4 {[%emt 0:00:00]} Nf6 {[%emt 0:00:30]} 3. Nbd2 {[%emt 0:00:00]} c5 {[%emt 0:00:30]} 4. e3 {[%emt 0:00:30]} d5 {[%emt 0:02:30]} 5. a3 {[%emt 0:03:30]} b6 {[%emt 0:03:30]} 6. b3 {[%emt 0:00:30]} Bd6 {[%emt 0:00:00]} 7. Bb2 {[%emt 0:00:30]} O-O {[%emt 0:00:00]} 8. Bd3 {[%emt 0:00:30]} Ba6 {[%emt 0:00:30]} 9. c4 {[%emt 0:00:00]} Nbd7 {[%emt 0:02:30]} 10. O-O {[%emt 0:00:00]} Rc8 {[%emt 0:01:30]} 11. Qe2 {[%emt 0:01:30]} Re8 {[%emt 0:07:30]} 12. Ne5 {[%emt 0:04:30]} Qc7 {[%emt 0:01:30]} 13. f4 {[%emt 0:01:30]} Bb7 {[%emt 0:01:30]} 14. Rac1 {[%emt 0:06:30]} Qb8 {[%emt 0:01:30]} 15. Ndf3 {[%emt 0:11:30]} Nf8 {[%emt 0:02:30]} 16. Ng5 {[%emt 0:20:30]} Re7 {[%emt 0:03:30]} 17. Bb1 {[%emt 0:13:30]} Ne4 {[%emt 0:13:30]} 18. Nxe4 {[%emt 0:10:30]} dxe4 {[%emt 0:00:30]} 19. Rcd1 {[%emt 0:00:30]} f6 {[%emt 0:03:30]} 20. Ng4 {[%emt 0:00:30]} Ng6 {[%emt 0:03:30]} 21. d5 {[%emt 0:06:30]} f5 {[%emt 0:05:30]} 22. Nf2 {[%emt 0:03:39]} e5 {[%emt 0:04:30]} 23. g3 {[%emt 0:01:45]} exf4 {[%emt 0:00:30]} 24. gxf4 {[%emt 0:00:17]} Nh4 {[%emt 0:02:30]} 25. Nh3 {[%emt 0:05:09]} Nf3+ {[%emt 0:00:30]} 26. Kh1 {[%emt 0:00:00]} Rf7 {[%emt 0:12:30]} 27. Ng1 {[%emt 0:00:22]} Nh4 {[%emt 0:01:30]} 28. Qh5 {[%emt 0:00:18]} Be7 {[%emt 0:04:27]} 29. Be5 {[%emt 0:01:46]} Qa8 {[%emt 0:01:04]} 30. Rf2 {[%emt 0:04:50]} Rcf8 {[%emt 0:01:46]} 31. Nh3 {[%emt 0:01:05]} Qc8 {[%emt 0:10:19]} 32. Rg1 {[%emt 0:01:09]} Nf3 {[%emt 0:01:07]} 33. Rxf3 {[%emt 0:01:02]} exf3 {[%emt 0:00:10]} 34. Ng5 {[%emt 0:00:09]} Bxg5 {[%emt 0:00:10]} 35. Rxg5 {[%emt 0:00:09]} f2 {[%emt 0:00:30]} 36. Kg2 {[%emt 0:00:00]} h6 {[%emt 0:05:21]} 37. Kf1 {[%emt 0:00:00]} Qd7 {[%emt 0:00:40]} 38. Qxh6 {[%emt 0:00:00]} 1-0

[Event "1st Sivas Buruciye Open 2019"]
[Site "Sivas"]
[Date "2019.08.21"]
[Round "5"]
[White "Karahan, Anil"]
[Black "Ciblakbas, Sertan"]
[Result "1/2-1/2"]
[ECO "D78"]
[WhiteElo "1721"]
[BlackElo "1720"]
[Annotator "NA"]
[PlyCount "75"]
[EventDate "2019.08.19"]
[EventType "swiss"]
[EventCountry "TUR"]
[SourceTitle "playchess.com"]
[Source "ChessBase"]
[SourceQuality "1"]
[TimeControl "5400+30"]

1. Nf3 {[%emt 0:03:30]} d5 {[%emt 0:00:30]} 2. g3 {[%emt 0:02:30]} g6 {[%emt 0:00:30]} 3. Bg2 {[%emt 0:00:30]} Bg7 {[%emt 0:00:00]} 4. d4 {[%emt 0:00:00]} Nf6 {[%emt 0:01:00]} 5. O-O {[%emt 0:00:00]} O-O {[%emt 0:00:30]} 6. c4 {[%emt 0:00:30]} c6 {[%emt 0:02:30]} 7. Nbd2 {[%emt 0:00:30]} a5 {[%emt 0:10:30]} 8. cxd5 {[%emt 0:09:30]} cxd5 {[%emt 0:05:30]} 9. Ne5 {[%emt 0:00:30]} Nc6 {[%emt 0:04:30]} 10. Ndf3 {[%emt 0:05:30]} Qb6 {[%emt 0:09:30]} 11. b3 {[%emt 0:06:30]} Ne4 {[%emt 0:06:30]} 12. Nxc6 {[%emt 0:04:30]} bxc6 {[%emt 0:03:30]} 13. Ba3 {[%emt 0:01:30]} Re8 {[%emt 0:05:30]} 14. Rc1 {[%emt 0:05:30]} Ba6 {[%emt 0:08:30]} 15. Ne5 {[%emt 0:18:30]} Rac8 {[%emt 0:03:30]} 16. Re1 {[%emt 0:02:30]} Bxe5 {[%emt 0:01:30]} 17. Bxe4 {[%emt 0:00:00]} Qxd4 {[%emt 0:00:30]} 18. Qxd4 {[%emt 0:01:00]} Bxd4 {[%emt 0:00:30]} 19. Bf3 {[%emt 0:00:00]} Bb6 {[%emt 0:04:30]} 20. Bc5 {[%emt 0:00:00]} Bc7 {[%emt 0:01:30]} 21. e4 {[%emt 0:02:30]} e6 {[%emt 0:02:30]} 22. Rc2 {[%emt 0:01:30]} Bb7 {[%emt 0:03:30]} 23. e5 {[%emt 0:01:30]} Kg7 {[%emt 0:05:08]} 24. Bg4 {[%emt 0:01:30]} h5 {[%emt 0:00:16]} 25. Bh3 {[%emt 0:02:30]} Bd8 {[%emt 0:03:11]} 26. f4 {[%emt 0:02:30]} Be7 {[%emt 0:00:01]} 27. Kf2 {[%emt 0:01:30]} Bxc5+ {[%emt 0:03:56]} 28. Rxc5 {[%emt 0:00:30]} Ra8 {[%emt 0:00:00]} 29. Ke3 {[%emt 0:02:30]} Kf8 {[%emt 0:01:24]} 30. Kd4 {[%emt 0:00:30]} Ke7 {[%emt 0:00:31]} 31. Rec1 {[%emt 0:00:30]} Kd7 {[%emt 0:01:00]} 32. Bf1 {[%emt 0:01:30]} Rec8 {[%emt 0:01:38]} 33. R1c2 {[%emt 0:04:30]} Kc7 {[%emt 0:02:37]} 34. Bb5 {[%emt 0:00:55]} Kb6 {[%emt 0:00:09]} 35. Bd3 {[%emt 0:03:01]} Ba6 {[%emt 0:01:40]} 36. Bxa6 {[%emt 0:02:54]} Rxa6 {[%emt 0:00:01]} 37. Rc1 {[%emt 0:00:00]} Rc7 {[%emt 0:03:46]} 38. h4 {[%emt 0:00:19]} 1/2-1/2

[Event "1st Sivas Buruciye Open 2019"]
[Site "Sivas"]
[Date "2019.08.21"]
[Round "5"]
[White "Var, Sefa"]
[Black "Shahlarov, Faig"]
[Result "0-1"]
[ECO "B94"]
[WhiteElo "1698"]
[BlackElo "1798"]
[Annotator "NA"]
[PlyCount "124"]
[EventDate "2019.08.19"]
[EventType "swiss"]
[EventCountry "TUR"]
[SourceTitle "playchess.com"]
[Source "ChessBase"]
[SourceQuality "1"]
[TimeControl "5400+30"]

1. e4 {[%emt 0:12:30]} c5 {[%emt 0:00:30]} 2. Nf3 {[%emt 0:00:00]} d6 {[%emt 0:00:00]} 3. d4 {[%emt 0:01:00]} cxd4 {[%emt 0:00:00]} 4. Nxd4 {[%emt 0:00:30]} Nf6 {[%emt 0:00:30]} 5. Nc3 {[%emt 0:00:00]} a6 {[%emt 0:00:30]} 6. Bg5 {[%emt 0:01:00]} Nbd7 {[%emt 0:03:30]} 7. Qe2 {[%emt 0:00:30]} Qc7 {[%emt 0:05:30]} 8. f4 {[%emt 0:06:30]} b5 {[%emt 0:02:30]} 9. Bxf6 {[%emt 0:05:30]} Nxf6 {[%emt 0:00:30]} 10. e5 {[%emt 0:01:30]} dxe5 {[%emt 0:12:30]} 11. fxe5 {[%emt 0:01:30]} b4 {[%emt 0:01:30]} 12. Ncb5 {[%emt 0:06:30]} axb5 {[%emt 0:04:30]} 13. Nxb5 {[%emt 0:00:30]} Qc5 {[%emt 0:08:30]} 14. exf6 {[%emt 0:01:30]} gxf6 {[%emt 0:12:30]} 15. Qc4 {[%emt 0:21:30]} Qxc4 {[%emt 0:05:30]} 16. Bxc4 {[%emt 0:00:00]} Rb8 {[%emt 0:00:30]} 17. Rd1 {[%emt 0:06:00]} Bh6 {[%emt 0:08:30]} 18. Nc7+ {[%emt 0:06:30]} Kf8 {[%emt 0:00:30]} 19. Rd8+ {[%emt 0:00:30]} Kg7 {[%emt 0:00:30]} 20. Rxh8 {[%emt 0:00:30]} Kxh8 {[%emt 0:00:00]} 21. Bxf7 {[%emt 0:01:30]} Bf5 {[%emt 0:00:00]} 22. Bb3 {[%emt 0:07:59]} Bxc2 {[%emt 0:00:30]} 23. Bxc2 {[%emt 0:00:50]} Rc8 {[%emt 0:00:30]} 24. Ke2 {[%emt 0:01:20]} Rxc7 {[%emt 0:00:00]} 25. Bd3 {[%emt 0:00:48]} Kg7 {[%emt 0:01:00]} 26. Rf1 {[%emt 0:02:07]} Bc1 {[%emt 0:01:30]} 27. b3 {[%emt 0:03:05]} Bg5 {[%emt 0:03:30]} 28. h4 {[%emt 0:01:14]} Bh6 {[%emt 0:00:30]} 29. g4 {[%emt 0:01:52]} Rd7 {[%emt 0:01:30]} 30. Rf5 {[%emt 0:00:51]} Bc1 {[%emt 0:05:30]} 31. Rh5 {[%emt 0:00:19]} h6 {[%emt 0:00:30]} 32. Rc5 {[%emt 0:00:01]} Bf4 {[%emt 0:00:30]} 33. Rc4 {[%emt 0:01:20]} Bd6 {[%emt 0:00:30]} 34. Rc8 {[%emt 0:00:18]} Ra7 {[%emt 0:00:00]} 35. Rc2 {[%emt 0:03:27]} Ra5 {[%emt 0:00:00]} 36. Kf3 {[%emt 0:02:50]} Rd5 {[%emt 0:00:30]} 37. Be4 {[%emt 0:01:40]} Rd1 {[%emt 0:00:30]} 38. h5 {[%emt 0:00:14]} Rh1 {[%emt 0:00:30]} 39. Bd5 {[%emt 0:00:51]} Rh3+ {[%emt 0:01:30]} 40. Ke4 {[%emt 0:00:57]} f5+ {[%emt 0:04:28]} 41. Kxf5 {[%emt 0:00:58]} Re3 {[%emt 0:00:07]} 42. Be4 {[%emt 0:00:59]} Kf7 {[%emt 0:01:16]} 43. Bd5+ {[%emt 0:00:20]} e6+ {[%emt 0:00:12]} 44. Bxe6+ {[%emt 0:00:30]} Rxe6 {[%emt 0:00:30]} 45. Rc4 {[%emt 0:00:30]} Re5+ {[%emt 0:00:30]} 46. Kf4 {[%emt 0:00:30]} Ra5+ {[%emt 0:00:30]} 47. Ke4 {[%emt 0:00:30]} Rxa2 {[%emt 0:00:30]} 48. Kd5 {[%emt 0:00:30]} Rd2+ {[%emt 0:00:30]} 49. Kc6 {[%emt 0:00:30]} Kf6 {[%emt 0:00:30]} 50. Re4 {[%emt 0:00:30]} Kg5 {[%emt 0:00:30]} 51. Re6 {[%emt 0:00:00]} Bf4 {[%emt 0:11:44]} 52. Rg6+ {[%emt 0:00:11]} Kh4 {[%emt 0:00:34]} 53. Kc5 {[%emt 0:00:11]} Bg5 {[%emt 0:00:27]} 54. Kxb4 {[%emt 0:00:53]} Kxg4 {[%emt 0:00:08]} 55. Kc3 {[%emt 0:00:09]} Rd8 {[%emt 0:00:13]} 56. Re6 {[%emt 0:00:29]} Kxh5 {[%emt 0:00:09]} 57. Re4 {[%emt 0:01:32]} Kg6 {[%emt 0:00:21]} 58. b4 {[%emt 0:02:05]} h5 {[%emt 0:00:13]} 59. Kc4 {[%emt 0:00:00]} h4 {[%emt 0:00:18]} 60. Re1 {[%emt 0:00:40]} Kf5 {[%emt 0:00:11]} 61. b5 {[%emt 0:00:00]} Bf4 {[%emt 0:00:07]} 62. b6 {[%emt 0:00:01]} h3 {[%emt 0:00:13]} 0-1

[Event "1st Sivas Buruciye Open 2019"]
[Site "Sivas"]
[Date "2019.08.21"]
[Round "5"]
[White "Bogaakca, Mehmet"]
[Black "Kiziltas, Inanc Vefa"]
[Result "1/2-1/2"]
[ECO "B15"]
[WhiteElo "1665"]
[BlackElo "1826"]
[Annotator "NA"]
[PlyCount "43"]
[EventDate "2019.08.19"]
[EventType "swiss"]
[EventCountry "TUR"]
[SourceTitle "playchess.com"]
[Source "ChessBase"]
[SourceQuality "1"]
[TimeControl "5400+30"]

1. e4 {[%emt 0:13:30]} c6 {[%emt 0:00:30]} 2. d4 {[%emt 0:00:30]} d5 {[%emt 0:00:30]} 3. Nc3 {[%emt 0:00:30]} dxe4 {[%emt 0:00:30]} 4. Nxe4 {[%emt 0:00:30]} Nf6 {[%emt 0:00:30]} 5. Ng3 {[%emt 0:00:30]} e5 {[%emt 0:00:30]} 6. Nf3 {[%emt 0:02:30]} exd4 {[%emt 0:06:30]} 7. Qxd4 {[%emt 0:00:30]} Qxd4 {[%emt 0:01:30]} 8. Nxd4 {[%emt 0:00:00]} Bc5 {[%emt 0:00:30]} 9. Be3 {[%emt 0:00:00]} O-O {[%emt 0:02:30]} 10. Ndf5 {[%emt 0:02:30]} Bxe3 {[%emt 0:05:30]} 11. Nxe3 {[%emt 0:00:30]} Be6 {[%emt 0:00:30]} 12. O-O-O {[%emt 0:00:30]} Nbd7 {[%emt 0:01:30]} 13. Bc4 {[%emt 0:05:30]} Nc5 {[%emt 0:06:30]} 14. Bxe6 {[%emt 0:03:30]} Nxe6 {[%emt 0:00:00]} 15. Ngf5 {[%emt 0:00:30]} Ne4 {[%emt 0:00:00]} 16. Rhf1 {[%emt 0:00:30]} g6 {[%emt 0:00:30]} 17. Nd6 {[%emt 0:00:30]} Nxd6 {[%emt 0:00:00]} 18. Rxd6 {[%emt 0:00:30]} Rfd8 {[%emt 0:00:00]} 19. Rfd1 {[%emt 0:00:30]} Rxd6 {[%emt 0:00:30]} 20. Rxd6 {[%emt 0:00:00]} Rd8 {[%emt 0:00:00]} 21. Rxd8+ {[%emt 0:00:00]} Nxd8 {[%emt 0:00:00]} 22. Kd2 {[%emt 0:00:30]} 1/2-1/2

[Event "1st Sivas Buruciye Open 2019"]
[Site "Sivas"]
[Date "2019.08.21"]
[Round "5"]
[White "Altundal, Arda"]
[Black "Ercan, Mehmet Fahri"]
[Result "1-0"]
[ECO "B91"]
[WhiteElo "1659"]
[BlackElo "1854"]
[Annotator "NA"]
[PlyCount "81"]
[EventDate "2019.08.19"]
[EventType "swiss"]
[EventCountry "TUR"]
[SourceTitle "playchess.com"]
[Source "ChessBase"]
[SourceQuality "1"]
[TimeControl "5400+30"]

1. e4 {[%emt 0:00:30]} c5 {[%emt 0:05:30]} 2. Nf3 {[%emt 0:00:00]} d6 {[%emt 0:00:30]} 3. d4 {[%emt 0:00:00]} cxd4 {[%emt 0:00:00]} 4. Nxd4 {[%emt 0:00:30]} Nf6 {[%emt 0:00:00]} 5. Nc3 {[%emt 0:00:00]} Bd7 {[%emt 0:00:00]} 6. g3 {[%emt 0:14:00]} Nc6 {[%emt 0:02:00]} 7. Bg2 {[%emt 0:01:30]} a6 {[%emt 0:03:30]} 8. O-O {[%emt 0:04:30]} g6 {[%emt 0:00:30]} 9. Nxc6 {[%emt 0:03:30]} bxc6 {[%emt 0:01:30]} 10. Qe2 {[%emt 0:07:30]} Qc7 {[%emt 0:01:30]} 11. h3 {[%emt 0:04:30]} Bg7 {[%emt 0:00:30]} 12. Be3 {[%emt 0:00:30]} O-O {[%emt 0:00:30]} 13. f4 {[%emt 0:05:30]} Rfb8 {[%emt 0:10:30]} 14. Rfb1 {[%emt 0:02:30]} a5 {[%emt 0:03:30]} 15. Kh2 {[%emt 0:06:30]} Rb7 {[%emt 0:02:30]} 16. a4 {[%emt 0:05:30]} Rab8 {[%emt 0:04:30]} 17. Ra2 {[%emt 0:03:30]} Be6 {[%emt 0:02:30]} 18. b3 {[%emt 0:00:00]} Nd7 {[%emt 0:14:30]} 19. Bd2 {[%emt 0:03:00]} Nc5 {[%emt 0:02:30]} 20. Rf1 {[%emt 0:04:30]} f5 {[%emt 0:08:30]} 21. Qe3 {[%emt 0:06:30]} Qd7 {[%emt 0:14:30]} 22. exf5 {[%emt 0:03:30]} gxf5 {[%emt 0:00:30]} 23. Ne2 {[%emt 0:00:30]} Ra8 {[%emt 0:10:00]} 24. Bc3 {[%emt 0:06:51]} Bxc3 {[%emt 0:02:51]} 25. Nxc3 {[%emt 0:00:00]} Na6 {[%emt 0:01:33]} 26. Bxc6 {[%emt 0:00:30]} Qxc6 {[%emt 0:00:56]} 27. Qxe6+ {[%emt 0:00:07]} Kh8 {[%emt 0:00:03]} 28. Nb5 {[%emt 0:01:58]} Nb4 {[%emt 0:00:50]} 29. Rb2 {[%emt 0:00:28]} Rf8 {[%emt 0:00:29]} 30. c4 {[%emt 0:01:57]} Nd3 {[%emt 0:00:49]} 31. Rd2 {[%emt 0:01:24]} Nc5 {[%emt 0:00:28]} 32. Qe3 {[%emt 0:00:45]} Ne4 {[%emt 0:00:24]} 33. Qd4+ {[%emt 0:02:40]} Rf6 {[%emt 0:04:01]} 34. Re2 {[%emt 0:01:04]} Qc5 {[%emt 0:01:21]} 35. g4 {[%emt 0:03:31]} Rxb5 {[%emt 0:00:35]} 36. Qb2 {[%emt 0:00:52]} Rb8 {[%emt 0:00:58]} 37. g5 {[%emt 0:00:30]} Rbf8 {[%emt 0:00:30]} 38. gxf6 {[%emt 0:00:05]} Rxf6 {[%emt 0:02:10]} 39. Rg1 {[%emt 0:00:32]} Qb4 {[%emt 0:00:41]} 40. Reg2 {[%emt 0:00:16]} h5 {[%emt 0:00:19]} 41. Qe2 {[%emt 0:00:45]} 1-0

[Event "1st Sivas Buruciye Open 2019"]
[Site "Sivas"]
[Date "2019.08.21"]
[Round "5"]
[White "Citil, Feyzullah"]
[Black "Subasi, Fidel"]
[Result "1/2-1/2"]
[ECO "B22"]
[WhiteElo "1586"]
[BlackElo "1683"]
[Annotator "NA"]
[PlyCount "119"]
[EventDate "2019.08.19"]
[EventType "swiss"]
[EventCountry "TUR"]
[SourceTitle "playchess.com"]
[Source "ChessBase"]
[SourceQuality "1"]
[TimeControl "5400+30"]

1. e4 {[%emt 0:08:30]} e6 {[%emt 0:00:30]} 2. d4 {[%emt 0:00:30]} d5 {[%emt 0:00:00]} 3. exd5 {[%emt 0:02:30]} exd5 {[%emt 0:00:00]} 4. Bd3 {[%emt 0:00:00]} c5 {[%emt 0:00:30]} 5. c3 {[%emt 0:07:00]} Nc6 {[%emt 0:00:30]} 6. Nf3 {[%emt 0:01:30]} Nf6 {[%emt 0:00:00]} 7. O-O {[%emt 0:06:30]} Be7 {[%emt 0:02:00]} 8. h3 {[%emt 0:03:30]} O-O {[%emt 0:00:30]} 9. Re1 {[%emt 0:01:30]} h6 {[%emt 0:05:30]} 10. Nbd2 {[%emt 0:02:30]} cxd4 {[%emt 0:07:30]} 11. cxd4 {[%emt 0:01:30]} Bd6 {[%emt 0:06:30]} 12. Nf1 {[%emt 0:07:30]} Be6 {[%emt 0:06:30]} 13. Bd2 {[%emt 0:12:30]} Re8 {[%emt 0:07:30]} 14. Rc1 {[%emt 0:00:30]} Qb6 {[%emt 0:03:30]} 15. b4 {[%emt 0:08:30]} Ne4 {[%emt 0:08:30]} 16. Bxe4 {[%emt 0:07:30]} dxe4 {[%emt 0:00:30]} 17. Rxe4 {[%emt 0:00:00]} Bxa2 {[%emt 0:02:30]} 18. Rxe8+ {[%emt 0:05:00]} Rxe8 {[%emt 0:00:00]} 19. Qa4 {[%emt 0:00:30]} Bd5 {[%emt 0:03:00]} 20. b5 {[%emt 0:02:58]} Bxf3 {[%emt 0:01:30]} 21. gxf3 {[%emt 0:01:41]} Qxd4 {[%emt 0:02:30]} 22. Ra1 {[%emt 0:00:20]} Qxa4 {[%emt 0:09:30]} 23. Rxa4 {[%emt 0:01:45]} Ne5 {[%emt 0:02:30]} 24. Be3 {[%emt 0:04:49]} Nxf3+ {[%emt 0:01:30]} 25. Kg2 {[%emt 0:03:44]} Ne1+ {[%emt 0:01:30]} 26. Kh1 {[%emt 0:05:01]} Re5 {[%emt 0:07:30]} 27. Bf4 {[%emt 0:02:30]} Re6 {[%emt 0:00:30]} 28. Bxd6 {[%emt 0:00:32]} Rxd6 {[%emt 0:01:59]} 29. Rxa7 {[%emt 0:00:03]} b6 {[%emt 0:02:24]} 30. Ne3 {[%emt 0:01:00]} Nf3 {[%emt 0:00:58]} 31. Nf5 {[%emt 0:01:51]} Rd1+ {[%emt 0:02:14]} 32. Kg2 {[%emt 0:00:11]} Ne1+ {[%emt 0:00:35]} 33. Kf1 {[%emt 0:00:41]} Rb1 {[%emt 0:00:56]} 34. Ke2 {[%emt 0:00:10]} Nc2 {[%emt 0:08:38]} 35. Kd3 {[%emt 0:01:59]} Nb4+ {[%emt 0:00:30]} 36. Kc4 {[%emt 0:00:00]} g6 {[%emt 0:03:00]} 37. Nxh6+ {[%emt 0:00:00]} Kg7 {[%emt 0:01:38]} 38. Nxf7 {[%emt 0:00:03]} Kf6 {[%emt 0:00:32]} 39. Nd6 {[%emt 0:00:34]} Ke6 {[%emt 0:00:53]} 40. Ne4 {[%emt 0:00:55]} Nd5 {[%emt 0:00:53]} 41. Ng5+ {[%emt 0:00:49]} Ke5 {[%emt 0:00:44]} 42. f4+ {[%emt 0:00:30]} Nxf4 {[%emt 0:00:30]} 43. Nf3+ {[%emt 0:00:30]} Kd6 {[%emt 0:00:30]} 44. Rf7 {[%emt 0:00:56]} Nd5 {[%emt 0:01:10]} 45. Nd4 {[%emt 0:00:39]} Rb4+ {[%emt 0:00:51]} 46. Kd3 {[%emt 0:00:05]} Kc5 {[%emt 0:00:39]} 47. Ne6+ {[%emt 0:00:53]} Kxb5 {[%emt 0:00:14]} 48. Rg7 {[%emt 0:00:46]} Rh4 {[%emt 0:00:56]} 49. Rxg6 {[%emt 0:00:39]} Rxh3+ {[%emt 0:00:48]} 50. Kd4 {[%emt 0:00:09]} Nb4 {[%emt 0:00:08]} 51. Nc7+ {[%emt 0:00:30]} Ka5 {[%emt 0:00:22]} 52. Rg1 {[%emt 0:00:38]} Rd3+ {[%emt 0:00:43]} 53. Kc4 {[%emt 0:00:14]} Ra3 {[%emt 0:00:29]} 54. Rg8 {[%emt 0:00:45]} Na6 {[%emt 0:00:37]} 55. Nxa6 {[%emt 0:00:21]} b5+ {[%emt 0:00:21]} 56. Kd4 {[%emt 0:00:49]} Ra4+ {[%emt 0:00:13]} 57. Kd5 {[%emt 0:00:00]} Kxa6 {[%emt 0:00:44]} 58. Ra8+ {[%emt 0:00:00]} Kb6 {[%emt 0:00:08]} 59. Rxa4 {[%emt 0:00:20]} bxa4 {[%emt 0:00:30]} 60. Ke4 {[%emt 0:00:30]} 1/2-1/2